Cogmind - Beta 15 @@@ ROGUE MODE // 2025.07.13 @ 14:30:36 Player: arius Result: Destroyed by C-17 Slicer with Blade Saw Performance ------------- Evolutions (4) 2000 Regions Visited (5) 1000 Robots Destroyed (14) 70 Value Destroyed (377) 377 Prototype IDs (4) 80 Alien Tech Used (0) 0 Bonus (95) 95 TOTAL SCORE: 3622 Bonus ------- Follower Combat Kills 95 Cogmind --------- Core Integrity 0/850 Matter 136/300 Energy 81/100 System Corruption 0% Temperature Cool (0) Movement Core (50) Location -6/Factory Parts ------- > --- POWER (1) -------- (None) > --- PROPULSION (4) --- (None) > --- UTILITY (8) ------ (None) > --- WEAPON (2) ------- (None) > --- INVENTORY (5) ---- System Guard Drone Bay (2/2) Field Laser Remote Datajack Peak State ------------ > --- POWER ------------ (None) > --- PROPULSION ------- Carbon-fiber Leg Carbon-fiber Leg Titanium Leg Cooled Cesium-ion Thruster > --- UTILITY ---------- Structural Scanner Signal Interpreter Shock Absorption System Shock Absorption System Bomb Drone Bay > --- WEAPON ----------- Beamcaster Subdweller Machine Gun > --- INVENTORY -------- System Guard Field Laser Plasma Rifle Remote Datajack [Rating: 47] Favorites ----------- Power Ion Engine Engine Ion Engine Propulsion Light Treads Treads Light Treads Leg Carbon-fiber Leg Flight Unit Cooled Cesium-ion Thruster Utility Structural Scanner Device Structural Scanner Storage Small Storage Unit Processor Signal Interpreter Weapon Light Assault Rifle Energy Gun Small Laser Energy Cannon Subdweller Beam Cannon Ballistic Gun Light Assault Rifle Ballistic Cannon Heavy Flak Cannon Launcher Grenade Launcher Impact Weapon Hammer Build | -11 -10 -10 -10 -8 -6 ------- Run | Yrd Mat Min Sub Rec Fac Slots Evolved 8 | . . . . . 8 Power . | . . . . . . Propulsion 2 | . . . . . 2 Utility 6 | . . . . . 6 Weapon . | . . . . . . Parts Attached 33 | 7 3 . 13 2 8 Power 5 | 2 . . 3 . . Engine 5 | 2 . . 3 . . Core . | . . . . . . Reactor . | . . . . . . Propulsion 6 | 2 . . 2 1 1 Treads 2 | 2 . . . . . Leg 3 | . . . 2 1 . Wheel . | . . . . . . Hover . | . . . . . . Flight 1 | . . . . . 1 Utility 8 | 1 3 . 1 . 3 Device 5 | . 2 . . . 3 Storage 1 | 1 . . . . . Processor 2 | . 1 . 1 . . Hackware . | . . . . . . Protection . | . . . . . . Artifact . | . . . . . . Weapon 14 | 2 . . 7 1 4 Energy Gun 5 | 1 . . 2 1 1 Energy Cannon 2 | . . . 2 . . Ballistic Gun 2 | 1 . . 1 . . Ballistic Cannon 3 | . . . . . 3 Launcher 1 | . . . 1 . . Special Weapon . | . . . . . . Impact Weapon 1 | . . . 1 . . Slashing Weapon . | . . . . . . Piercing Weapon . | . . . . . . Special Melee Weapon . | . . . . . . Unidentified Prototypes 2 | . . . . . 2 Parts Lost 13 | . . . 2 . 11 Power . | . . . . . . Propulsion 4 | . . . . . 4 Utility 4 | . . . . . 4 Weapon 5 | . . . 2 . 3 Highest Loss Streak 10 | . . . 2 . 10 To Critical Strikes 1 | . . . . . 1 Average Backups 2 | . 2 4 2 3 3 Power . | . . . . . . Propulsion . | . . . . . . Utility 1 | . 1 2 1 1 1 Weapon 1 | . . 2 1 1 1 Tool/Special . | . . . . . . Unused Backups 6 | . 1 . 1 1 3 Power . | . . . . . . Propulsion 1 | . 1 . . . . Utility 3 | . . . . 1 2 Weapon 1 | . . . 1 . . Tool/Special 1 | . . . . . 1 Average Slot Usage (%) 90 | . 99 100 91 85 53 Engine 10 | . 14 14 11 . . Treads 17 | . 28 28 16 . . Leg 8 | . . . 11 28 14 Device 17 | . 18 28 14 14 16 Processor 9 | . 7 . 13 14 5 Energy Gun 11 | . 14 14 9 14 5 Energy Cannon 2 | . . . 7 . . Ballistic Gun 9 | . 14 14 4 13 4 Peak Build Rating 47 | 6 7 8 18 18 47 Average Rating 12 | 5 6 7 12 16 34 On Entrance 9 | . 6 7 8 16 17 Naked Turns 12 | . . . . . 12 Heaviest Build 24 | 12 13 9 19 10 24 Greatest Support 40 | 40 40 40 40 32 30 Greatest Overweight (x) 4 | . . . . . 4 Average Overweight (x) . | . . . . . . Largest Inventory Capacity 8 | 8 8 5 5 5 5 Average Capacity 5 | 7 5 5 5 5 5 Most Carried 5 | 2 5 5 5 5 5 Average Carried 3 | . 2 4 3 4 3 Final Capacity 8 | 8 5 5 5 5 5 Final Carried 5 | . 4 5 4 4 4 Class Distribution -------------------- 72% | Mutant 27% | Scavenger-Mutant Dominant Class ---------------- Mutant | -10/Materials Mutant | -10/Mines Mutant | -10/Subcaves Scavenger-Mutant | -8/Recycling Scavenger-Mutant | -6/Factory Resources | -11 -10 -10 -10 -8 -6 ----------- Run | Yrd Mat Min Sub Rec Fac Matter Collected 506 | 263 49 . 176 10 8 Remotely . | . . . . . . Salvage Created 394 | . 135 . 243 . 16 Parts 29 | . 11 . 13 . 5 Haulers Intercepted . | . . . . . . Recyclers Shooed . | . . . . . . Parts Field Recycled . | . . . . . . Retrieved Matter . | . . . . . . Parts Self-Destructed 14 | . . . 14 . . Prevented . | . . . . . . Kills | -11 -10 -10 -10 -8 -6 ------- Run | Yrd Mat Min Sub Rec Fac Combat Hostiles Destroyed 10 | . 3 . 6 . 1 Guns 3 | . 3 . . . . Cannons 4 | . . . 3 . 1 AOE 1 | . . . 1 . . Classes Destroyed 8 | . 3 . 3 . 2 Worker 1 | . 1 . . . . Tunneler 1 | . . . . . 1 Turret 1 | . . . 1 . . Watcher 1 | . 1 . . . . Swarmer 1 | . . . 1 . . Cutter 1 | . . . . . 1 Grunt 4 | . 3 . 1 . . Subdweller 4 | . . . 4 . . Best Kill Streak 2 | . 2 . 1 . 1 Combat Bots Only 1 | . 1 . 1 . 1 Max Kills in Single Turn 1 | . 1 . 1 . 1 Gunslinging . | . . . . . . Exploded 1 | . . . 1 . . Melee . | . . . . . . Uniques/NPCs Destroyed . | . . . . . . Combat | -11 -10 -10 -10 -8 -6 -------- Run | Yrd Mat Min Sub Rec Fac Hostile Shots Fired 223 | . 18 2 42 . 161 Missed 65 | . 5 . 16 . 44 Hits 158 | . 13 2 26 . 117 Melee 10 | . . . . . 10 Projectile 148 | . 13 2 26 . 107 AOE 3 | . . . . . 3 Critical Strikes 9 | . . . . . 9 Damage Taken 2517 | . 143 33 412 . 1929 Core 973 | . 34 18 70 . 851 Absorbed by Shields . | . . . . . . Core Remaining (%) 75 | 100 . . . 51 . Volleys Fired 73 | . 25 . 28 . 20 Largest 2 | . 2 . 2 . 2 Hottest 155 | . 60 . 155 . 150 Shots Fired 123 | . 47 . 42 1 33 Gun 95 | . 47 . 27 1 20 Cannon 27 | . . . 14 . 13 Launcher 1 | . . . 1 . . Special . | . . . . . . Kinetic 53 | . 25 . 7 1 20 Thermal 62 | . 22 . 27 . 13 Explosive 1 | . . . 1 . . Electromagnetic 7 | . . . 7 . . Robot Hit Streak 7 | . 7 . 7 . 6 Robot Miss Streak 6 | . 4 . 3 . 6 Penetration Max . | . . . . . . Secondary Targets . | . . . . . . Shots Hit Robots 76 | . 29 . 27 . 20 Core Hits 35 | . 11 . 12 . 12 Critical Kills 1 | . . . 1 . . Critical Parts Destroyed . | . . . . . . Critical Strikes 4 | . . . 3 . 1 Burn 2 | . . . 1 . 1 Meltdown 1 | . . . 1 . . Destroy 1 | . . . 1 . . Melee Attacks . | . . . . . . Impact . | . . . . . . Slashing . | . . . . . . Piercing . | . . . . . . Sneak Attacks . | . . . . . . Combat Hostiles . | . . . . . . Follow-up Attacks . | . . . . . . Damage Inflicted 1298 | . 270 6 599 . 423 Guns 705 | . 262 . 261 . 182 Cannons 455 | . . . 214 . 241 Explosions 124 | . . . 124 . . Melee . | . . . . . . Ramming 14 | . 8 6 . . . Kinetic 511 | . 131 . 40 . 340 Thermal 543 | . 131 . 329 . 83 Explosive 124 | . . . 124 . . Electromagnetic 106 | . . . 106 . . Impact . | . . . . . . Slashing . | . . . . . . Piercing . | . . . . . . Highest Corruption 1 | . 1 1 1 1 . Average Corruption 1 | . 1 1 1 1 . Corruption Purged . | . . . . . . Corruption Blocked . | . . . . . . Effects 15 | . . 3 10 2 . Message Errors 3 | . . . 3 . . Matter Fused 1 | . . . 1 . . Heat Flow Errors 3 | . . 1 2 . . Energy Discharges 2 | . . 1 . 1 . Data Loss (minor) 4 | . . 1 3 . . Misfires 2 | . . . 1 1 . Overload Shots . | . . . . . . Overflow Damage . | . . . . . . Projectiles . | . . . . . . Explosions . | . . . . . . Melee . | . . . . . . Knockbacks 12 | . 1 . . . 11 Impact 1 | . 1 . . . . Kinetic 10 | . . . . . 10 Secondary 1 | . . . . . 1 Self-Inflicted Damage . | . . . . . . Shots . | . . . . . . Rammed 7 | . 6 1 . . . Targets Rammed 7 | . 6 1 . . . Kicked . | . . . . . . Crushed . | . . . . . . Highest Temperature 226 | . 64 105 226 . 39 Average Temperature 39 | . 25 58 59 . 20 Received Heat Transfer 219 | . 78 18 123 . . Siege Activations . | . . . . . . Martial Activations . | . . . . . . Shielding Activations . | . . . . . . Robots Disrupted . | . . . . . . Combat Hostiles . | . . . . . . Robots Corrupted . | . . . . . . Combat Hostiles . | . . . . . . Parts Fried . | . . . . . . Impact Corruptions . | . . . . . . Robots Melted 2 | . . . 2 . . Combat Hostiles 2 | . . . 2 . . Parts Melted 2 | . . . 2 . . Heat Transferred 1115 | . 300 . 580 . 235 Parts Sabotaged . | . . . . . . Parts Stolen . | . . . . . . Parts Stripped . | . . . . . . Power Chain Reactions . | . . . . . . Alert | -11 -10 -10 -10 -8 -6 ------- Run | Yrd Mat Min Sub Rec Fac Maximum Alert Level . | . . . . . . Low Security (%) 100 | 100 100 100 . 100 100 Level 1 . | . . . . . . Level 2 . | . . . . . . Level 3 . | . . . . . . Level 4 . | . . . . . . Level 5 . | . . . . . . High Security . | . . . . . . Max Security . | . . . . . . Peak Influence 100 | . 35 58 . 12 100 Initial 100 | . . . . . 100 Average 8 | . 4 7 . . 35 Influence Increases 450 | . 82 104 120 19 125 Destroy 0b10 Robot/C 200 | . 60 60 60 . 20 Destroy 0b10 Robot/NC 15 | . 10 . . . 5 Destroy Leader 32 | . 12 20 . . . Allied During Kill 9 | . . 9 . . . Successful Hack 19 | . . . . 19 . Advance Influence 100 | . . . . . 100 Lose Combat Pursuer 75 | . . 15 60 . . Influence Decreases 450 | . 82 104 120 19 125 Time Decay 410 | . 82 84 120 19 105 Lost Part 20 | . . . . . 20 Lost Ally 20 | . . 20 . . . Squads Dispatched 2 | . 1 . . . 1 Investigation 1 | . 1 . . . . Extermination . | . . . . . . Reinforcement 1 | . . . . . 1 Assault . | . . . . . . Garrison . | . . . . . . Intercept . | . . . . . . Searches Triggered . | . . . . . . Construction Impeded . | . . . . . . Haulers Reinforced . | . . . . . . Active Scanning Responses . | . . . . . . Cargo Convoy Interrupts . | . . . . . . Stealth | -11 -10 -10 -10 -8 -6 --------- Run | Yrd Mat Min Sub Rec Fac Distress Signals 1 | . . . . . 1 Communications Jammed . | . . . . . . Distress Signals . | . . . . . . Times Spotted 45 | . 10 4 24 . 7 Peak Tracking Total 6 | . 3 2 4 . 6 Tactical Retreats 4 | . . 1 3 . . Traps | -11 -10 -10 -10 -8 -6 ------- Run | Yrd Mat Min Sub Rec Fac Traps Triggered 1 | . 1 . . . . Indirectly . | . . . . . . Trap Hack Attempts . | . . . . . . Triggered . | . . . . . . Disarmed . | . . . . . . Reprogrammed . | . . . . . . Reused . | . . . . . . Traps Extracted . | . . . . . . Installed . | . . . . . . Triggered . | . . . . . . Machines | -11 -10 -10 -10 -8 -6 ---------- Run | Yrd Mat Min Sub Rec Fac Machines Disabled . | . . . . . . Max in Single Turn . | . . . . . . Machines Repaired . | . . . . . . Machines Dismantled . | . . . . . . Machines Sabotaged . | . . . . . . Overloaded Fab Kills . | . . . . . . Hacking | -11 -10 -10 -10 -8 -6 --------- Run | Yrd Mat Min Sub Rec Fac Machines Accessed 7 | . 2 1 . 3 1 Terminals 6 | . 2 . . 3 1 Fabricators . | . . . . . . Repair Stations . | . . . . . . Recycling Units . | . . . . . . Scanalyzers . | . . . . . . Garrison Access . | . . . . . . Total Hacks 22 | . 5 1 . 14 2 Successful 15 | . 2 1 . 10 2 Failed 7 | . 3 . . 4 . Catastrophic 2 | . 2 . . . . Database Lockouts . | . . . . . . Manual 7 | . . . . 7 . Terminals 21 | . 5 . . 14 2 Fabricators . | . . . . . . Repair Stations . | . . . . . . Recycling Units . | . . . . . . Scanalyzers . | . . . . . . Garrison Access . | . . . . . . Terminal Hacks 15 | . 2 1 . 10 2 Record 7 | . . . . 7 . Part Schematic 1 | . . . . 1 . Prototype ID Bank 1 | . . . . . 1 Open Door 1 | . . 1 . . . Scanalyzer Index 1 | . . . . 1 . Transport Status 1 | . . . . . 1 Hauler Manifests 1 | . 1 . . . . Registered Components 1 | . 1 . . . . Zone Layout 1 | . . . . 1 . Fabricator Hacks . | . . . . . . Repair Station Hacks . | . . . . . . Recycling Unit Hacks . | . . . . . . Scanalyzer . | . . . . . . Garrison Access Hacks . | . . . . . . Unauthorized Hacks . | . . . . . . Terminals . | . . . . . . Fabricators . | . . . . . . Repair Stations . | . . . . . . Recycling Units . | . . . . . . Scanalyzers . | . . . . . . Garrison Access . | . . . . . . Data Cores Recovered . | . . . . . . Used . | . . . . . . Hacking Detections 5 | . 2 . . 3 . Full Trace Events 4 | . 2 . . 2 . Feedback Events . | . . . . . . Feedback Blocked . | . . . . . . Robot Schematics Acquired . | . . . . . . Robots Built . | . . . . . . Authchips . | . . . . . . Time . | . . . . . . Total Robot Build Rating . | . . . . . . Part Schematics Acquired 1 | . . . . 1 . Parts Built . | . . . . . . Authchips . | . . . . . . Time . | . . . . . . Total Part Build Rating . | . . . . . . Parts Repaired . | . . . . . . Time . | . . . . . . Parts Recycled . | . . . . . . Recycled Matter . | . . . . . . Retrieved Matter . | . . . . . . Retrieved Components . | . . . . . . Parts Scanalyzed . | . . . . . . Part Schematics Acquired . | . . . . . . Parts Damaged . | . . . . . . Bothacking | -11 -10 -10 -10 -8 -6 ------------ Run | Yrd Mat Min Sub Rec Fac Used RIF Installer . | . . . . . . Robots Hacked . | . . . . . . Non-combat . | . . . . . . Combat . | . . . . . . Robot Hacks Applied . | . . . . . . Relay Couplers Released . | . . . . . . Fabnet Peak Effective % . | . . . . . . Robots Rewired . | . . . . . . Allies Hacked . | . . . . . . Hacks Repelled . | . . . . . . Allies | -11 -10 -10 -10 -8 -6 -------- Run | Yrd Mat Min Sub Rec Fac Total Allies 3 | . . 3 . . . Largest Group 3 | . . 3 . . . Highest-Rated Group 40 | . . 40 . . . Highest-Rated Ally 16 | . . 16 . . . Total Orders . | . . . . . . Ally Attacks 22 | . . 22 . . . Total Damage 210 | . . 210 . . . Kills 3 | . . 3 . . . Allies Corrupted . | . . . . . . Allies Melted . | . . . . . . Intel | -11 -10 -10 -10 -8 -6 ------- Run | Yrd Mat Min Sub Rec Fac Active Infowar (turns) 3004 | . 701 543 1162 320 278 Sensors 1257 | . 701 543 13 . . Structural 2547 | . 244 543 1162 320 278 Robot Analysis Total . | . . . . . . Derelict Logs Recovered 1 | . . 1 . . . Drone Launches . | . . . . . . Drone Recoveries . | . . . . . . Exploration | -11 -10 -10 -10 -8 -6 ------------- Run | Yrd Mat Min Sub Rec Fac Turns Passed 3366 | 303 717 543 1169 320 314 Spaces Moved 2069 | 140 390 330 751 251 207 Core 45 | 5 . . . . 40 Treads 1250 | 135 390 330 395 . . Legs 774 | . . . 356 251 167 Wheels . | . . . . . . Hover . | . . . . . . Flight . | . . . . . . Fastest Speed 50 | 50 160 160 120 120 50 Average Speed 143 | 156 160 160 141 120 111 Slowest Speed 250 | 160 160 160 160 125 250 Overloaded Moves . | . . . . . . Propulsion Burnouts . | . . . . . . Robots Hopped . | . . . . . . Potential Cave-ins . | . . . . . . Cave-ins Triggered . | . . . . . . Exploration Rate (%) 33 | 8 48 60 35 48 4 Regions Visited 5 Branch Regions 3 Pre-discovered Areas . | . . . . . . Known Exits Taken 3 | . . 1 1 1 . Unknown Exits Taken 2 | 1 1 . . . . Scrap Searched 1 | . . 1 . . . Spaces Dug . | . . . . . . Terrain Destroyed 14 | . . . 14 . . Melee . | . . . . . . Projectile 5 | . . . 5 . . AOE 9 | . . . 9 . . Terrain Rammed . | . . . . . . Walls Destroyed . | . . . . . . Machines Disabled . | . . . . . . Actions | -11 -10 -10 -10 -8 -6 --------- Run | Yrd Mat Min Sub Rec Fac Total 2354 | 225 437 345 822 269 256 Wait 111 | 71 7 13 3 10 7 Move 2064 | 139 389 329 750 250 207 Hop . | . . . . . . Pick Up 39 | 7 6 1 11 3 11 Fast Attach 1 | . 1 . . . . Attach 20 | 6 . . 5 . 9 Detach 4 | . . . 4 . . Swap 17 | 1 2 . 10 3 1 Drop 18 | 1 1 1 11 3 1 Fire 73 | . 25 . 28 . 20 Melee . | . . . . . . Ram . | . . . . . . Kick . | . . . . . . Crush 7 | . 6 1 . . . Escape Stasis . | . . . . . . Rewire . | . . . . . . Trap . | . . . . . . Miscellaneous . | . . . . . . Route ------- -11/Scrapyard -10/Materials (discovered 2 exits: [*Mat] / *Min) -10/Mines (discovered 3 exits: [*Mat x2] / *Sub) -10/Subcaves (discovered 2 exits: *Mat / *Rec) -8/Recycling -6/Factory History --------- Turn | Location | Event 46 | -11/Scrapyard | Discovered new exit (range 16) 304 | -11/Scrapyard | Entered Materials 305 | -10/Materials | Build established: Mutant 673 | -10/Materials | Discovered new exit (range 16) 852 | -10/Materials | Discovered new exit (range 16) 1021 | -10/Materials | Entered Mines 1021 | -10/Mines | Discovered new exit (range 13) 1143 | -10/Mines | Assisted by bots powering up and referring to "LRC-V3" 1235 | -10/Mines | Discovered new exit (range 8) 1288 | -10/Mines | Identified exit to Subcaves 1310 | -10/Mines | Found the Drone Emporium 1319 | -10/Mines | Found Prototype Device 1478 | -10/Mines | Lost 3 allies 1564 | -10/Mines | Entered Subcaves 1635 | -10/Subcaves | Shifting Twisted Machinery released Riot Gun 1641 | -10/Subcaves | Shifting Twisted Machinery released Sub. Power Source 1791 | -10/Subcaves | Discovered new exit (range 7) 1802 | -10/Subcaves | Identified exit to Materials 1843 | -10/Subcaves | Ambushed by swarm of Subdwellers 2127 | -10/Subcaves | Ambushed by Subdwellers from Twisted Machinery 2357 | -10/Subcaves | Discovered new exit (range 16) 2553 | -10/Subcaves | Build established: Scavenger-Mutant 2731 | -10/Subcaves | Identified exit to Recycling 2733 | -10/Subcaves | Entered Recycling 2734 | -8/Recycling | Met a Zionite searching for Scraptown 2817 | -8/Recycling | Discovered new exit (range 5) 2822 | -8/Recycling | Identified exit to Factory 3053 | -8/Recycling | Entered Factory 3053 | -6/Factory | Evolved 8 slots: Propulsion x2, Utility x6 3056 | -6/Factory | Identified Bomb Drone Bay 3346 | -6/Factory | Core integrity fell below 50% 3359 | -6/Factory | Core integrity fell below 20% 3367 | -6/Factory | Destroyed by C-17 Slicer with Blade Saw Last Messages --------------- C-17 Slicer knocked back. U-05 Engineer lays Concrete. Penetrated by Slug. C-17 Slicer destroyed. Penetrated by Slug. U-05 Engineer lays Concrete. R-10 Processor collects Hvy. Flak Cannon. U-05 Engineer lays Concrete. H-66 Slayer knocked back. Penetrated by Slug. Critical hit (Destroy). Hvy. Flak Cannon destroyed. Penetrated by Slug. U-05 Engineer lays Concrete. Acquired 8 matter. U-05 Engineer lays Concrete. R-10 Processor collects Reaction Control System. U-05 Engineer lays Concrete. Penetrated by Slug. U-05 Engineer lays Concrete. Map ----- +----------------------------------------------------+ | ?????????????????????????????????????????????????? | | ??????????????????????????????????????????????? | | #### ????????????????????????????????????????????? | | ### ????????????????????????????????????????????? | | + ????????????????????????????????????????????? | | ### ????????????????????????????????????????????? | | ###??????????????????????????????????????????????? | | ###??????????????????????????????????????????????? | | ##???????????????????????????????????????????????? | | ##??? ## ####### ##?????????? | | ##???#####+#############+############ ##?????????? | | ##???## % ?????????? | | ##???## ^ ?????????? | | ##???## ! ?????????? | | ##???## % ?????????? | | ####### ?????????? | | ##########+##### ########## T##### ??????????? | | # ### ####### ##### ## ??????????? | | + T ### # % # ??????????? | | # ### # R u # ??????????? | | # ### # h # ??????????? | | # ### # u # ??????????? | | # ### # # ??????????? | | # """"""" ### # h R # ??????????? | | # """"""" ### # m # ??????????? | | # """"""" ### # @c # ??????????? | | # """"""" ### u # ??????????? | | # ### R# # ??????????? | | # ### ################# ??????????? | | ##+####+######## # """"" ####### ??????????? | | ## ### # # ??????????????????????????? | | ?????????????? # # ??????????????????????????? | | ?????????????? # # ??????????????????????????? | | ?????????????? + + ??????????????????????????? | | ?????????????? # # ??????????????????????????? | | ?????????????? # ????????????????????????????? | | ?????????????? # ????????????????????????????? | | ?????????????? # ????????????????????????????? | | ??????????????## ????????????????????????????? | | ??????????????## ????????????????????????????? | | ?????????????????? ????????????????????????????? | | ?????????????????????????????????????????????????? | | ?????????????????????????????????????????????????? | | ?????????????????????????????????????????????????? | | ?????????????????????????????????????????????????? | | ?????????????????????????????????????????????????? | | ?????????????????????????????????????????????????? | | ?????????????????????????????????????????????????? | | ?????????????????????????????????????????????????? | | ?????????????????????????????????????????????????? | +----------------------------------------------------+ Best States ------------- Heat Dissipation 37 Energy Generation 15 Energy Capacity 250 Matter Stores 300 Matter Capacity 300 Sight Range 16 Robot Scan Range 14 Terrain Scan Density 10 Resistance: EX 25 Evasion (%) 55 Targeting Accuracy 5 Recoil Reduction 2 Item Schematics ----------------- Proton Missile Launcher | -8/Recycling | Hacked Robot Schematics ------------------ None Fabricated ------------ Nothing Repaired ---------- Nothing Alien Tech Used ----------------- None Achievements -------------- It's Just You Made in Tau Ceti IV More Dakka Please Tourist Challenges ------------ None Game ------ Seed BlastHugeMembrane Manual? 0 Play Time 00:50:18 Cumulative 3.6 hours Start 2025.07.13 @ 13:39:33 End 2025.07.13 @ 14:30:36 Sessions 1 Manual Loads 0 Difficulty Rogue Special Mode None Game No. 4 Rogue 4 Adventurer 0 Explorer 0 Win Type - Total 0 Types 0/0/0/0/0/0/0/0/0/0 Lore% 1 Gallery% 4 Achievement% 6 Wizard Run 0 Options --------- Layout 1 ASCII 0 Keyboard 1 Movement Vi Keybinds 0 Fullscreen 1 Font 32/SmallcapsGlow Map View 50x35 Zoom Use 0% Tactical HUD 0 Map Filters NONE Filters NONE Steam 1 RUN: 0cde3ca3-5809-4fd8-83bb-85d018c0c89b